[Event "Titled Tuesday Blitz October 04 Late 2022"]
[White "Bryakin, Mikhail"]
[Black "Rastbod, Ali"]
[WhiteFideId "4165314"]
[BlackFideId "12567477"]
[WhiteElo "2367"]
[BlackElo "2248"]
[Result "1-0"]
[Round "06"]
[TimeControl "180+1"]
[Date "2022.10.04"]
[WhiteClock "0:01:03"]
[BlackClock "0:00:02"]

1. d4 {[%clk 0:03:00]}  d5 {[%clk 0:02:53]} 2. c4 {[%clk 0:02:58]}  e6 {[%clk 0:02:53]} 3. Nf3 {[%clk 0:02:58]}  a6 {[%clk 0:02:51]} 4. cxd5 {[%clk 0:02:56]}  exd5 {[%clk 0:02:51]} 5. Bg5 {[%clk 0:02:56]}  Be7 {[%clk 0:02:50]} 6. Bxe7 {[%clk 0:02:56]}  Nxe7 {[%clk 0:02:51]} 7. Nc3 {[%clk 0:02:56]}  O-O {[%clk 0:02:46]} 8. e3 {[%clk 0:02:56]}  Bf5 {[%clk 0:02:47]} 9. Be2 {[%clk 0:02:51]}  Nd7 {[%clk 0:02:38]} 10. O-O {[%clk 0:02:51]}  Nf6 {[%clk 0:02:38]} 11. Rc1 {[%clk 0:02:51]}  Qd6 {[%clk 0:02:38]} 12. Ne5 {[%clk 0:02:51]}  Ng6 {[%clk 0:02:36]} 13. f4 {[%clk 0:02:46]}  c6 {[%clk 0:02:32]} 14. Bf3 {[%clk 0:02:46]}  Rfe8 {[%clk 0:02:25]} 15. g4 {[%clk 0:02:47]}  Bc8 {[%clk 0:02:24]} 16. g5 {[%clk 0:02:43]}  Nd7 {[%clk 0:02:21]} 17. Qd2 {[%clk 0:02:42]}  Ndf8 {[%clk 0:02:20]} 18. Rf2 {[%clk 0:02:41]}  Bf5 {[%clk 0:02:20]} 19. Re1 {[%clk 0:02:36]}  Qe6 {[%clk 0:02:15]} 20. Na4 {[%clk 0:02:33]}  f6 {[%clk 0:02:11]} 21. Nc5 {[%clk 0:02:32]}  Qc8 {[%clk 0:02:12]} 22. gxf6 {[%clk 0:02:30]}  gxf6 {[%clk 0:02:13]} 23. Nxg6 {[%clk 0:02:28]}  hxg6 {[%clk 0:02:14]} 24. Rg2 {[%clk 0:02:27]}  Kh7 {[%clk 0:02:06]} 25. Qf2 {[%clk 0:02:23]}  b6 {[%clk 0:02:01]} 26. Qh4+ {[%clk 0:02:22]}  Kg7 {[%clk 0:02:01]} 27. Na4 {[%clk 0:02:18]}  Rb8 {[%clk 0:02:01]} 28. Nc3 {[%clk 0:02:18]}  Nh7 {[%clk 0:01:42]} 29. e4 {[%clk 0:02:08]}  dxe4 {[%clk 0:01:43]} 30. Nxe4 {[%clk 0:02:06]}  Qc7 {[%clk 0:01:28]} 31. Rge2 {[%clk 0:01:59]}  Bxe4 {[%clk 0:01:04]} 32. Bxe4 {[%clk 0:01:58]}  Qd6 {[%clk 0:00:53]} 33. Bxg6 {[%clk 0:01:49]}  Qxd4+ {[%clk 0:00:49]} 34. Kf1 {[%clk 0:01:49]}  Kxg6 {[%clk 0:00:35]} 35. Rxe8 {[%clk 0:01:47]}  Rxe8 {[%clk 0:00:33]} 36. Qg4+ {[%clk 0:01:43]}  Ng5 {[%clk 0:00:14]} 37. Rxe8 {[%clk 0:01:42]}  Qd3+ {[%clk 0:00:13]} 38. Re2 {[%clk 0:01:42]}  Qd1+ {[%clk 0:00:13]} 39. Kf2 {[%clk 0:01:37]}  Qd4+ {[%clk 0:00:13]} 40. Re3 {[%clk 0:01:33]}  Qxb2+ {[%clk 0:00:11]} 41. Qe2 {[%clk 0:01:16]}  Qxe2+ {[%clk 0:00:07]} 42. Rxe2 {[%clk 0:01:17]}  Nf7 {[%clk 0:00:03]} 43. Re6 {[%clk 0:01:17]}  Kf5 {[%clk 0:00:03]} 44. Rxc6 {[%clk 0:01:18]}  a5 {[%clk 0:00:01]} 45. Rxb6 {[%clk 0:01:17]}  Nh6 {[%clk 0:00:02]} 46. Kf3 {[%clk 0:01:03]} 1-0


[Site "https://www.chess.com"]

[Event "Titled Tuesday Blitz October 04 Late 2022"]
[White "Erdogdu, Mert"]
[Black "Turayev, Shahruh"]
[WhiteFideId "6301495"]
[BlackFideId "14003856"]
[WhiteElo "2413"]
[BlackElo "2602"]
[Result "0-1"]
[Round "06"]
[TimeControl "180+1"]
[Date "2022.10.04"]
[WhiteClock "0:00:03"]
[BlackClock "0:00:02"]

1. e4 {[%clk 0:03:00]}  e5 {[%clk 0:02:57]} 2. Nf3 {[%clk 0:03:01]}  Nc6 {[%clk 0:02:58]} 3. Bc4 {[%clk 0:03:00]}  f5 {[%clk 0:02:57]} 4. d3 {[%clk 0:02:56]}  Nf6 {[%clk 0:02:56]} 5. Nc3 {[%clk 0:02:55]}  Bb4 {[%clk 0:02:53]} 6. O-O {[%clk 0:02:52]}  Bxc3 {[%clk 0:02:49]} 7. bxc3 {[%clk 0:02:52]}  d6 {[%clk 0:02:50]} 8. Qe2 {[%clk 0:02:33]}  Na5 {[%clk 0:02:46]} 9. Bb3 {[%clk 0:02:28]}  Nxb3 {[%clk 0:02:45]} 10. axb3 {[%clk 0:02:29]}  O-O {[%clk 0:02:45]} 11. Nd2 {[%clk 0:02:24]}  f4 {[%clk 0:02:36]} 12. f3 {[%clk 0:02:24]}  Qe8 {[%clk 0:02:32]} 13. d4 {[%clk 0:02:23]}  g5 {[%clk 0:02:21]} 14. Nc4 {[%clk 0:02:11]}  g4 {[%clk 0:02:17]} 15. dxe5 {[%clk 0:01:56]}  dxe5 {[%clk 0:02:16]} 16. Ra5 {[%clk 0:01:55]}  b5 {[%clk 0:02:11]} 17. Na3 {[%clk 0:01:49]}  c6 {[%clk 0:02:05]} 18. c4 {[%clk 0:01:46]}  b4 {[%clk 0:01:33]} 19. Nb1 {[%clk 0:01:46]}  Qd8 {[%clk 0:01:33]} 20. Ra2 {[%clk 0:01:29]}  a5 {[%clk 0:01:29]} 21. Bb2 {[%clk 0:01:28]}  Re8 {[%clk 0:01:10]} 22. c3 {[%clk 0:01:23]}  c5 {[%clk 0:01:02]} 23. cxb4 {[%clk 0:01:21]}  cxb4 {[%clk 0:01:02]} 24. Rd1 {[%clk 0:01:18]}  Qc7 {[%clk 0:00:55]} 25. Ba1 {[%clk 0:01:17]}  Kf7 {[%clk 0:00:51]} 26. Rad2 {[%clk 0:01:16]}  Ra6 {[%clk 0:00:44]} 27. Qf2 {[%clk 0:01:13]}  Rg8 {[%clk 0:00:36]} 28. Kh1 {[%clk 0:01:09]}  g3 {[%clk 0:00:36]} 29. Qg1 {[%clk 0:01:00]}  gxh2 {[%clk 0:00:34]} 30. Qf2 {[%clk 0:01:00]}  Nh5 {[%clk 0:00:30]} 31. Qh4 {[%clk 0:00:30]}  Ng3+ {[%clk 0:00:19]} 32. Kxh2 {[%clk 0:00:30]}  Rgg6 {[%clk 0:00:14]} 33. Qxh7+ {[%clk 0:00:25]}  Rg7 {[%clk 0:00:13]} 34. Qh8 {[%clk 0:00:23]}  Rg8 {[%clk 0:00:08]} 35. Qxe5 {[%clk 0:00:16]}  Rh6+ {[%clk 0:00:07]} 36. Kg1 {[%clk 0:00:16]}  Rh1+ {[%clk 0:00:04]} 37. Kf2 {[%clk 0:00:17]}  Qxe5 {[%clk 0:00:04]} 38. Bxe5 {[%clk 0:00:17]}  Rh2 {[%clk 0:00:04]} 39. Rg1 {[%clk 0:00:16]}  Nh1+ {[%clk 0:00:04]} 40. Kf1 {[%clk 0:00:15]}  Ng3+ {[%clk 0:00:05]} 41. Ke1 {[%clk 0:00:16]}  Nh5 {[%clk 0:00:05]} 42. Rd5 {[%clk 0:00:15]}  Rhxg2 {[%clk 0:00:04]} 43. Rxg2 {[%clk 0:00:15]}  Rxg2 {[%clk 0:00:05]} 44. Nd2 {[%clk 0:00:16]}  Ng3 {[%clk 0:00:04]} 45. Bxf4 {[%clk 0:00:16]}  Ne2 {[%clk 0:00:02]} 46. Bc7 {[%clk 0:00:11]}  Nc3 {[%clk 0:00:02]} 47. Rd8 {[%clk 0:00:08]}  Bh3 {[%clk 0:00:02]} 48. Nb1 {[%clk 0:00:03]}  Re2# {[%clk 0:00:02]} 0-1


[Site "https://www.chess.com"]

[Event "Titled Tuesday Blitz October 04 Late 2022"]
[White "Goltsev, Dmitry"]
[Black "Kravtsiv, Martyn"]
[WhiteFideId "24176710"]
[BlackFideId "14113147"]
[WhiteElo "2257"]
[BlackElo "2694"]
[Result "0-1"]
[Round "06"]
[TimeControl "180+1"]
[Date "2022.10.04"]
[WhiteClock "0:00:29"]
[BlackClock "0:01:01"]

1. e4 {[%clk 0:02:49]}  e5 {[%clk 0:02:59]} 2. Nf3 {[%clk 0:02:45]}  Nc6 {[%clk 0:02:59]} 3. Bb5 {[%clk 0:02:45]}  a6 {[%clk 0:02:59]} 4. Ba4 {[%clk 0:02:45]}  Nf6 {[%clk 0:02:59]} 5. O-O {[%clk 0:02:45]}  Be7 {[%clk 0:02:59]} 6. Re1 {[%clk 0:02:45]}  b5 {[%clk 0:02:59]} 7. Bb3 {[%clk 0:02:45]}  O-O {[%clk 0:03:00]} 8. c3 {[%clk 0:02:43]}  d5 {[%clk 0:02:59]} 9. d3 {[%clk 0:02:43]}  dxe4 {[%clk 0:02:54]} 10. dxe4 {[%clk 0:02:44]}  Qxd1 {[%clk 0:02:54]} 11. Rxd1 {[%clk 0:02:43]}  Bg4 {[%clk 0:02:52]} 12. h3 {[%clk 0:02:38]}  Bxf3 {[%clk 0:02:51]} 13. gxf3 {[%clk 0:02:38]}  Rad8 {[%clk 0:02:46]} 14. Be3 {[%clk 0:02:37]}  Na5 {[%clk 0:02:45]} 15. Nd2 {[%clk 0:02:36]}  Rd7 {[%clk 0:02:40]} 16. Nf1 {[%clk 0:02:35]}  Rfd8 {[%clk 0:02:36]} 17. Rxd7 {[%clk 0:02:32]}  Rxd7 {[%clk 0:02:35]} 18. Rd1 {[%clk 0:02:33]}  Nxb3 {[%clk 0:02:30]} 19. Rxd7 {[%clk 0:02:31]}  Nxd7 {[%clk 0:02:31]} 20. axb3 {[%clk 0:02:32]}  a5 {[%clk 0:02:31]} 21. Ng3 {[%clk 0:02:27]}  g6 {[%clk 0:02:30]} 22. Ne2 {[%clk 0:02:28]}  c6 {[%clk 0:02:23]} 23. Nc1 {[%clk 0:02:27]}  f5 {[%clk 0:02:10]} 24. Nd3 {[%clk 0:02:22]}  Kf7 {[%clk 0:02:05]} 25. Kf1 {[%clk 0:01:52]}  Ke6 {[%clk 0:02:04]} 26. Ke2 {[%clk 0:01:51]}  c5 {[%clk 0:02:00]} 27. c4 {[%clk 0:01:49]}  bxc4 {[%clk 0:01:59]} 28. bxc4 {[%clk 0:01:50]}  a4 {[%clk 0:02:00]} 29. Nc1 {[%clk 0:01:46]}  Nb8 {[%clk 0:01:48]} 30. Na2 {[%clk 0:01:43]}  Nc6 {[%clk 0:01:45]} 31. Nc3 {[%clk 0:01:41]}  f4 {[%clk 0:01:45]} 32. Bd2 {[%clk 0:01:28]}  Nd4+ {[%clk 0:01:45]} 33. Kd3 {[%clk 0:01:27]}  Nxf3 {[%clk 0:01:46]} 34. Nxa4 {[%clk 0:01:27]}  Ng1 {[%clk 0:01:46]} 35. b4 {[%clk 0:01:16]}  cxb4 {[%clk 0:01:43]} 36. c5 {[%clk 0:01:17]}  Nxh3 {[%clk 0:01:39]} 37. f3 {[%clk 0:01:18]}  b3 {[%clk 0:01:35]} 38. c6 {[%clk 0:01:16]}  Bd6 {[%clk 0:01:33]} 39. Ba5 {[%clk 0:01:11]}  Ng5 {[%clk 0:01:28]} 40. Ke2 {[%clk 0:00:54]}  Nf7 {[%clk 0:01:13]} 41. Kd3 {[%clk 0:00:44]}  h5 {[%clk 0:01:12]} 42. Be1 {[%clk 0:00:40]}  Nd8 {[%clk 0:01:09]} 43. c7 {[%clk 0:00:35]}  Bxc7 {[%clk 0:01:08]} 44. Nc5+ {[%clk 0:00:35]}  Kf7 {[%clk 0:01:07]} 45. Nxb3 {[%clk 0:00:35]}  Ne6 {[%clk 0:01:04]} 46. Nd2 {[%clk 0:00:31]}  Ba5 {[%clk 0:01:03]} 47. Kc4 {[%clk 0:00:28]}  Bxd2 {[%clk 0:01:02]} 48. Bxd2 {[%clk 0:00:29]}  h4 {[%clk 0:01:01]} 0-1


[Site "https://www.chess.com"]

[Event "Titled Tuesday Blitz October 04 Late 2022"]
[White "Gubajdullin, Alexei"]
[Black "Kozak, Adam"]
[WhiteFideId "4141202"]
[BlackFideId "753246"]
[WhiteElo "2200"]
[BlackElo "2459"]
[Result "1-0"]
[Round "06"]
[TimeControl "180+1"]
[Date "2022.10.04"]
[WhiteClock "0:00:10"]
[BlackClock "0:00:02"]

1. d4 {[%clk 0:03:00]}  Nf6 {[%clk 0:02:43]} 2. Nf3 {[%clk 0:03:00]}  d5 {[%clk 0:02:43]} 3. Bf4 {[%clk 0:03:00]}  e6 {[%clk 0:02:41]} 4. e3 {[%clk 0:02:59]}  Bd6 {[%clk 0:02:40]} 5. Ne5 {[%clk 0:02:58]}  c5 {[%clk 0:02:36]} 6. c3 {[%clk 0:02:55]}  Qc7 {[%clk 0:02:36]} 7. Nd2 {[%clk 0:02:51]}  Nbd7 {[%clk 0:02:34]} 8. Bb5 {[%clk 0:02:40]}  O-O {[%clk 0:02:32]} 9. Nxd7 {[%clk 0:02:35]}  Nxd7 {[%clk 0:02:33]} 10. Bxd6 {[%clk 0:02:33]}  Qxd6 {[%clk 0:02:21]} 11. O-O {[%clk 0:02:31]}  Qb6 {[%clk 0:01:49]} 12. a4 {[%clk 0:02:18]}  a6 {[%clk 0:01:35]} 13. Bxd7 {[%clk 0:02:17]}  Bxd7 {[%clk 0:01:36]} 14. Nb3 {[%clk 0:02:09]}  cxd4 {[%clk 0:01:28]} 15. exd4 {[%clk 0:02:06]}  Bc6 {[%clk 0:01:25]} 16. a5 {[%clk 0:02:03]}  Qc7 {[%clk 0:01:08]} 17. Re1 {[%clk 0:02:00]}  Rae8 {[%clk 0:01:01]} 18. Qh5 {[%clk 0:01:47]}  Qf4 {[%clk 0:01:01]} 19. Qe5 {[%clk 0:01:42]}  Qg4 {[%clk 0:00:57]} 20. Nc5 {[%clk 0:01:39]}  f6 {[%clk 0:00:52]} 21. Qg3 {[%clk 0:01:29]}  Qf5 {[%clk 0:00:41]} 22. Qd3 {[%clk 0:01:28]}  Qxd3 {[%clk 0:00:39]} 23. Nxd3 {[%clk 0:01:28]}  Kf7 {[%clk 0:00:40]} 24. f4 {[%clk 0:01:27]}  Re7 {[%clk 0:00:33]} 25. Kf2 {[%clk 0:01:26]}  Rfe8 {[%clk 0:00:34]} 26. g3 {[%clk 0:01:26]}  h6 {[%clk 0:00:30]} 27. h4 {[%clk 0:01:25]}  h5 {[%clk 0:00:30]} 28. Re3 {[%clk 0:01:24]}  Kg6 {[%clk 0:00:29]} 29. Rae1 {[%clk 0:01:23]}  Kf5 {[%clk 0:00:30]} 30. Nc5 {[%clk 0:01:22]}  Bb5 {[%clk 0:00:29]} 31. Kf3 {[%clk 0:01:16]}  Bc6 {[%clk 0:00:28]} 32. Kf2 {[%clk 0:01:16]}  Bb5 {[%clk 0:00:23]} 33. Kf3 {[%clk 0:01:14]}  Bc4 {[%clk 0:00:23]} 34. Kf2 {[%clk 0:01:13]}  g6 {[%clk 0:00:06]} 35. Rd1 {[%clk 0:01:10]}  Bb5 {[%clk 0:00:05]} 36. Rd2 {[%clk 0:01:10]}  Bc6 {[%clk 0:00:05]} 37. Re1 {[%clk 0:01:10]}  e5 {[%clk 0:00:02]} 38. dxe5 {[%clk 0:01:07]}  fxe5 {[%clk 0:00:02]} 39. Rxe5+ {[%clk 0:01:06]}  Rxe5 {[%clk 0:00:03]} 40. fxe5 {[%clk 0:01:06]}  Rxe5 {[%clk 0:00:03]} 41. Re2 {[%clk 0:01:06]}  Bb5 {[%clk 0:00:01]} 42. Rxe5+ {[%clk 0:01:03]}  Kxe5 {[%clk 0:00:02]} 43. Nxb7 {[%clk 0:01:02]}  d4 {[%clk 0:00:03]} 44. Nc5 {[%clk 0:00:43]}  Kd5 {[%clk 0:00:03]} 45. cxd4 {[%clk 0:00:41]}  Kxd4 {[%clk 0:00:03]} 46. Ne6+ {[%clk 0:00:38]}  Ke5 {[%clk 0:00:02]} 47. Nc7 {[%clk 0:00:37]}  Bd3 {[%clk 0:00:01]} 48. Ke3 {[%clk 0:00:36]}  Bf1 {[%clk 0:00:01]} 49. b4 {[%clk 0:00:33]}  Kd6 {[%clk 0:00:01]} 50. Ne8+ {[%clk 0:00:32]}  Ke5 {[%clk 0:00:01]} 51. Nc7 {[%clk 0:00:28]}  Kd6 {[%clk 0:00:01]} 52. Na8 {[%clk 0:00:25]}  Ke5 {[%clk 0:00:01]} 53. Nb6 {[%clk 0:00:15]}  Bb5 {[%clk 0:00:01]} 54. Nc8 {[%clk 0:00:14]}  Bc4 {[%clk 0:00:01]} 55. Ne7 {[%clk 0:00:14]}  Bb5 {[%clk 0:00:01]} 56. Nxg6+ {[%clk 0:00:13]}  Kf5 {[%clk 0:00:01]} 57. Nf4 {[%clk 0:00:13]}  Kg4 {[%clk 0:00:01]} 58. Kf2 {[%clk 0:00:14]}  Bc4 {[%clk 0:00:01]} 59. Ng6 {[%clk 0:00:13]}  Bb5 {[%clk 0:00:01]} 60. Ne5+ {[%clk 0:00:13]}  Kf5 {[%clk 0:00:02]} 61. Nf7 {[%clk 0:00:12]}  Kf6 {[%clk 0:00:02]} 62. Nd6 {[%clk 0:00:11]}  Bd3 {[%clk 0:00:02]} 63. Ke3 {[%clk 0:00:11]}  Bf1 {[%clk 0:00:02]} 64. Kd4 {[%clk 0:00:11]}  Ke6 {[%clk 0:00:01]} 65. Kc5 {[%clk 0:00:11]}  Be2 {[%clk 0:00:02]} 66. b5 {[%clk 0:00:11]}  axb5 {[%clk 0:00:02]} 67. Nxb5 {[%clk 0:00:11]}  Ke5 {[%clk 0:00:03]} 68. Kb6 {[%clk 0:00:11]}  Bf3 {[%clk 0:00:03]} 69. a6 {[%clk 0:00:11]}  Bh1 {[%clk 0:00:02]} 70. a7 {[%clk 0:00:10]}  Kf5 {[%clk 0:00:02]} 71. Nd6+ {[%clk 0:00:10]}  Kg4 {[%clk 0:00:02]} 72. Nb7 {[%clk 0:00:10]} 1-0


[Site "https://www.chess.com"]

[Event "Titled Tuesday Blitz October 04 Late 2022"]
[White "Holt, Conrad"]
[Black "Weetik, Vjacheslav"]
[WhiteFideId "2034387"]
[BlackFideId "4153472"]
[WhiteElo "2592"]
[BlackElo "2469"]
[Result "1-0"]
[Round "06"]
[TimeControl "180+1"]
[Date "2022.10.04"]
[WhiteClock "0:01:09"]
[BlackClock "0:00:02"]

1. d4 {[%clk 0:03:00]}  Nf6 {[%clk 0:02:59]} 2. c4 {[%clk 0:03:01]}  g6 {[%clk 0:03:00]} 3. Nc3 {[%clk 0:03:00]}  Bg7 {[%clk 0:03:01]} 4. e4 {[%clk 0:03:01]}  d6 {[%clk 0:03:01]} 5. Nf3 {[%clk 0:03:01]}  O-O {[%clk 0:03:00]} 6. h3 {[%clk 0:03:02]}  e5 {[%clk 0:02:59]} 7. dxe5 {[%clk 0:03:02]}  dxe5 {[%clk 0:02:56]} 8. Qxd8 {[%clk 0:03:03]}  Rxd8 {[%clk 0:02:56]} 9. Bg5 {[%clk 0:03:04]}  Re8 {[%clk 0:02:54]} 10. Nd5 {[%clk 0:03:03]}  Nxd5 {[%clk 0:02:53]} 11. cxd5 {[%clk 0:03:04]}  c6 {[%clk 0:02:53]} 12. Bc4 {[%clk 0:03:05]}  cxd5 {[%clk 0:02:37]} 13. Bxd5 {[%clk 0:03:06]}  Nd7 {[%clk 0:02:35]} 14. Nd2 {[%clk 0:03:05]}  h6 {[%clk 0:02:29]} 15. Be3 {[%clk 0:03:03]}  Nf6 {[%clk 0:02:21]} 16. Bc4 {[%clk 0:03:01]}  Bd7 {[%clk 0:02:17]} 17. Ke2 {[%clk 0:02:58]}  Bc6 {[%clk 0:02:15]} 18. Bd3 {[%clk 0:02:53]}  Nh5 {[%clk 0:02:03]} 19. g3 {[%clk 0:02:50]}  f5 {[%clk 0:02:03]} 20. exf5 {[%clk 0:02:24]}  Bxh1 {[%clk 0:01:52]} 21. Rxh1 {[%clk 0:02:22]}  e4 {[%clk 0:01:25]} 22. Bc4+ {[%clk 0:02:12]}  Kh7 {[%clk 0:01:24]} 23. Bf7 {[%clk 0:02:10]}  Rf8 {[%clk 0:00:40]} 24. Bxg6+ {[%clk 0:02:09]}  Kh8 {[%clk 0:00:40]} 25. Bxh5 {[%clk 0:02:09]}  Rxf5 {[%clk 0:00:40]} 26. Bg6 {[%clk 0:02:08]}  Ra5 {[%clk 0:00:39]} 27. Bxe4 {[%clk 0:02:00]}  Rxa2 {[%clk 0:00:38]} 28. Nc4 {[%clk 0:01:34]}  Rc8 {[%clk 0:00:29]} 29. Bb1 {[%clk 0:01:31]}  Ra4 {[%clk 0:00:20]} 30. Nd6 {[%clk 0:01:27]}  Rf8 {[%clk 0:00:15]} 31. b3 {[%clk 0:01:16]}  Rb4 {[%clk 0:00:15]} 32. Bc2 {[%clk 0:01:15]}  a5 {[%clk 0:00:08]} 33. Bc5 {[%clk 0:01:11]}  Bc3 {[%clk 0:00:01]} 34. Bxb4 {[%clk 0:01:10]}  Bxb4 {[%clk 0:00:02]} 35. Ne4 {[%clk 0:01:09]} 1-0


[Site "https://www.chess.com"]

[Event "Titled Tuesday Blitz October 04 Late 2022"]
[White "Ivanisevic, Ivan"]
[Black "Melikyan, Gnel"]
[WhiteFideId "912417"]
[BlackFideId "54109990"]
[WhiteElo "2582"]
[BlackElo "2138"]
[Result "1-0"]
[Round "06"]
[TimeControl "180+1"]
[Date "2022.10.04"]
[WhiteClock "0:00:16"]
[BlackClock "0:00:02"]

1. d4 {[%clk 0:03:00]}  Nf6 {[%clk 0:02:59]} 2. c4 {[%clk 0:03:01]}  d6 {[%clk 0:02:59]} 3. Nc3 {[%clk 0:02:59]}  e5 {[%clk 0:02:59]} 4. Nf3 {[%clk 0:02:58]}  Nc6 {[%clk 0:02:58]} 5. g3 {[%clk 0:02:46]}  Be7 {[%clk 0:02:51]} 6. Bg2 {[%clk 0:02:40]}  O-O {[%clk 0:02:51]} 7. O-O {[%clk 0:02:40]}  Re8 {[%clk 0:02:49]} 8. h3 {[%clk 0:02:40]}  Bf8 {[%clk 0:02:47]} 9. b3 {[%clk 0:02:39]}  g6 {[%clk 0:02:38]} 10. Bb2 {[%clk 0:02:37]}  Bg7 {[%clk 0:02:37]} 11. dxe5 {[%clk 0:02:32]}  Nxe5 {[%clk 0:02:33]} 12. Nxe5 {[%clk 0:02:31]}  Rxe5 {[%clk 0:02:33]} 13. Nd5 {[%clk 0:02:25]}  Re8 {[%clk 0:02:32]} 14. Qd2 {[%clk 0:02:17]}  Rb8 {[%clk 0:02:15]} 15. Rad1 {[%clk 0:02:15]}  Nxd5 {[%clk 0:02:11]} 16. cxd5 {[%clk 0:02:14]}  b6 {[%clk 0:01:58]} 17. Rfe1 {[%clk 0:02:09]}  Ba6 {[%clk 0:01:55]} 18. Rc1 {[%clk 0:02:07]}  Rc8 {[%clk 0:01:49]} 19. Bxg7 {[%clk 0:02:04]}  Kxg7 {[%clk 0:01:49]} 20. Rc3 {[%clk 0:02:02]}  Qf6 {[%clk 0:01:42]} 21. e4 {[%clk 0:01:57]}  Re7 {[%clk 0:01:32]} 22. f4 {[%clk 0:01:53]}  Kg8 {[%clk 0:01:16]} 23. Rec1 {[%clk 0:01:46]}  Bb5 {[%clk 0:00:38]} 24. Kh2 {[%clk 0:01:38]}  h6 {[%clk 0:00:31]} 25. a4 {[%clk 0:01:29]}  Be8 {[%clk 0:00:25]} 26. h4 {[%clk 0:00:56]}  Kg7 {[%clk 0:00:12]} 27. Re1 {[%clk 0:00:46]}  Bd7 {[%clk 0:00:11]} 28. Rce3 {[%clk 0:00:44]}  Bg4 {[%clk 0:00:11]} 29. e5 {[%clk 0:00:43]}  dxe5 {[%clk 0:00:10]} 30. fxe5 {[%clk 0:00:44]}  Qf5 {[%clk 0:00:10]} 31. Qd4 {[%clk 0:00:41]}  Kh7 {[%clk 0:00:09]} 32. Rf1 {[%clk 0:00:38]}  Qd7 {[%clk 0:00:04]} 33. Rf6 {[%clk 0:00:37]}  Bf5 {[%clk 0:00:04]} 34. Qf4 {[%clk 0:00:36]}  Rce8 {[%clk 0:00:04]} 35. h5 {[%clk 0:00:31]}  Kg7 {[%clk 0:00:04]} 36. g4 {[%clk 0:00:23]}  Bxg4 {[%clk 0:00:03]} 37. e6 {[%clk 0:00:22]}  Bxe6 {[%clk 0:00:03]} 38. dxe6 {[%clk 0:00:22]}  Rxe6 {[%clk 0:00:03]} 39. Rexe6 {[%clk 0:00:21]}  Rxe6 {[%clk 0:00:04]} 40. Rxe6 {[%clk 0:00:21]}  Qxe6 {[%clk 0:00:05]} 41. Qxc7 {[%clk 0:00:18]}  Qxb3 {[%clk 0:00:05]} 42. Qe5+ {[%clk 0:00:18]}  Kg8 {[%clk 0:00:04]} 43. hxg6 {[%clk 0:00:18]}  Qe6 {[%clk 0:00:02]} 44. gxf7+ {[%clk 0:00:17]}  Kf8 {[%clk 0:00:02]} 45. Qxe6 {[%clk 0:00:16]} 1-0


[Site "https://www.chess.com"]

[Event "Titled Tuesday Blitz October 04 Late 2022"]
[White "Jaracz, Pawel"]
[Black "Pichot, Alan"]
[WhiteFideId "1102222"]
[BlackFideId "110973"]
[WhiteElo "2459"]
[BlackElo "2578"]
[Result "0-1"]
[Round "06"]
[TimeControl "180+1"]
[Date "2022.10.04"]
[WhiteClock "0:00:01"]
[BlackClock "0:00:08"]

1. e4 {[%clk 0:03:00]}  c6 {[%clk 0:02:55]} 2. d4 {[%clk 0:03:00]}  d5 {[%clk 0:02:55]} 3. e5 {[%clk 0:02:58]}  Bf5 {[%clk 0:02:55]} 4. Nf3 {[%clk 0:02:56]}  e6 {[%clk 0:02:54]} 5. Be2 {[%clk 0:02:56]}  Ne7 {[%clk 0:02:54]} 6. O-O {[%clk 0:02:56]}  h6 {[%clk 0:02:54]} 7. c3 {[%clk 0:02:51]}  Nd7 {[%clk 0:02:55]} 8. Na3 {[%clk 0:02:51]}  Bh7 {[%clk 0:02:52]} 9. Nc2 {[%clk 0:02:50]}  g5 {[%clk 0:02:51]} 10. Ne3 {[%clk 0:02:48]}  Bg7 {[%clk 0:02:50]} 11. Bd3 {[%clk 0:02:47]}  O-O {[%clk 0:02:45]} 12. Bxh7+ {[%clk 0:02:46]}  Kxh7 {[%clk 0:02:46]} 13. h4 {[%clk 0:02:41]}  gxh4 {[%clk 0:02:38]} 14. Nxh4 {[%clk 0:02:40]}  Ng6 {[%clk 0:02:38]} 15. Nf3 {[%clk 0:02:36]}  f5 {[%clk 0:02:32]} 16. exf6 {[%clk 0:02:36]}  Nxf6 {[%clk 0:02:31]} 17. Nd2 {[%clk 0:02:10]}  Qd6 {[%clk 0:02:27]} 18. Qc2 {[%clk 0:02:08]}  Rae8 {[%clk 0:02:24]} 19. g3 {[%clk 0:02:03]}  e5 {[%clk 0:02:20]} 20. Nf5 {[%clk 0:02:03]}  Qd7 {[%clk 0:02:20]} 21. dxe5 {[%clk 0:01:59]}  Rxe5 {[%clk 0:02:12]} 22. Nxg7 {[%clk 0:01:59]}  Kxg7 {[%clk 0:02:12]} 23. Qd3 {[%clk 0:01:19]}  Qh3 {[%clk 0:02:10]} 24. Qf3 {[%clk 0:01:17]}  Ng4 {[%clk 0:01:55]} 25. Qg2 {[%clk 0:01:17]}  Qxg2+ {[%clk 0:01:55]} 26. Kxg2 {[%clk 0:01:17]}  Re2 {[%clk 0:01:56]} 27. Nf3 {[%clk 0:01:16]}  h5 {[%clk 0:01:49]} 28. Bg5 {[%clk 0:01:08]}  Rxb2 {[%clk 0:01:38]} 29. Rab1 {[%clk 0:01:08]}  Rxb1 {[%clk 0:01:31]} 30. Rxb1 {[%clk 0:01:08]}  Rf7 {[%clk 0:01:25]} 31. Rb2 {[%clk 0:01:03]}  N4e5 {[%clk 0:01:20]} 32. Nd4 {[%clk 0:01:02]}  Nc4 {[%clk 0:01:08]} 33. Re2 {[%clk 0:01:02]}  Nd6 {[%clk 0:01:07]} 34. f3 {[%clk 0:00:55]}  Nf5 {[%clk 0:01:02]} 35. Ne6+ {[%clk 0:00:52]}  Kg8 {[%clk 0:01:02]} 36. Nd8 {[%clk 0:00:51]}  Rd7 {[%clk 0:01:02]} 37. Re8+ {[%clk 0:00:51]}  Kg7 {[%clk 0:01:02]} 38. Re5 {[%clk 0:00:48]}  Nd6 {[%clk 0:00:59]} 39. Re2 {[%clk 0:00:34]}  Nf7 {[%clk 0:00:56]} 40. Ne6+ {[%clk 0:00:32]}  Kg8 {[%clk 0:00:56]} 41. Bf6 {[%clk 0:00:28]}  Rd6 {[%clk 0:00:55]} 42. f4 {[%clk 0:00:25]}  Nf8 {[%clk 0:00:52]} 43. f5 {[%clk 0:00:22]}  Nh7 {[%clk 0:00:46]} 44. Be7 {[%clk 0:00:20]}  Rd7 {[%clk 0:00:46]} 45. f6 {[%clk 0:00:20]}  Nhg5 {[%clk 0:00:44]} 46. Nc5 {[%clk 0:00:19]}  Rc7 {[%clk 0:00:44]} 47. g4 {[%clk 0:00:16]}  h4 {[%clk 0:00:43]} 48. Re1 {[%clk 0:00:15]}  Kh7 {[%clk 0:00:41]} 49. Nd3 {[%clk 0:00:14]}  Rd7 {[%clk 0:00:31]} 50. Nf4 {[%clk 0:00:14]}  d4 {[%clk 0:00:30]} 51. Rd1 {[%clk 0:00:13]}  d3 {[%clk 0:00:22]} 52. Rxd3 {[%clk 0:00:07]}  Rxd3 {[%clk 0:00:23]} 53. Nxd3 {[%clk 0:00:08]}  Ne4 {[%clk 0:00:23]} 54. c4 {[%clk 0:00:07]}  Kg6 {[%clk 0:00:24]} 55. c5 {[%clk 0:00:06]}  Kg5 {[%clk 0:00:21]} 56. Kf3 {[%clk 0:00:06]}  Nc3 {[%clk 0:00:19]} 57. Nf2 {[%clk 0:00:06]}  Nxa2 {[%clk 0:00:15]} 58. Ne4+ {[%clk 0:00:05]}  Kg6 {[%clk 0:00:15]} 59. Nd6 {[%clk 0:00:05]}  Nb4 {[%clk 0:00:11]} 60. Nxb7 {[%clk 0:00:06]}  Nd5 {[%clk 0:00:12]} 61. Nd6 {[%clk 0:00:03]}  Nxf6 {[%clk 0:00:11]} 62. Nf5 {[%clk 0:00:02]}  Ne5+ {[%clk 0:00:10]} 63. Kf4 {[%clk 0:00:01]}  h3 {[%clk 0:00:09]} 64. Kg3 {[%clk 0:00:01]}  Nfxg4 {[%clk 0:00:08]} 65. Kxh3 {[%clk 0:00:01]}  Kxf5 {[%clk 0:00:08]} 0-1


[Site "https://www.chess.com"]